bitfinex-derivatives/quotes_BTCF0:USTF0_20241122
["timestamp","ask_amount","ask_price","bid_price","bid_amount"]
[1732310164064,0.3608,98993.0,98988.0,0.050447]
[1732310164365,0.3608,98993.0,98980.0,0.09792227]
[1732310164366,0.3608,98993.0,98989.0,0.11496]
[1732310165565,0.3608,98993.0,98990.0,0.11496]
[1732310166471,0.3608,98993.0,98991.0,0.05045]
[1732310166970,0.3608,98993.0,98992.0,0.05045]
[1732310169666,0.3608,98993.0,98992.0,0.19287371]
[1732310176069,0.3608,99000.0,98992.0,0.14242371]
[1732310176267,0.3608,99021.0,98995.0,0.3608]
[1732310176465,0.3608,99021.0,99020.0,0.050436]
[1732310176667,0.3608,99021.0,99020.0,0.165356]
[1732310176965,0.0315,99029.0,99020.0,0.11492]
[1732310177166,0.0015152,99030.0,99025.0,0.050434]
[1732310177470,0.0015152,99030.0,99020.0,0.11492]
[1732310177784,0.0015152,99030.0,99025.0,0.050434]
[1732310177979,0.0015152,99030.0,99023.0,0.050435]
[1732310178275,0.0015152,99030.0,99024.0,0.050434]
[1732310178967,0.0015152,99030.0,99020.0,0.14150942]
[1732310179169,0.0015152,99030.0,99022.0,0.050435]
[1732310179371,0.0015152,99030.0,99029.0,0.050432]
[1732310180763,0.0015152,99030.0,99029.0,0.411232]
[1732310181170,0.0015152,99030.0,99029.0,0.050432]
[1732310181368,0.0015152,99030.0,99029.0,0.411232]
[1732310181962,0.0015152,99030.0,99029.0,0.050432]
[1732310182162,0.0015152,99030.0,99021.0,0.0307]
[1732310182475,0.0015152,99030.0,99022.0,0.11492]
[1732310182669,0.0015152,99030.0,99022.0,0.165355]
[1732310183067,0.0015152,99030.0,99022.0,0.050435]
[1732310183261,0.411227,99039.0,99023.0,0.165355]
[1732310183465,0.3608,99039.0,99023.0,0.11492]
[1732310183663,0.3608,99026.0,99023.0,0.11492]
[1732310183869,0.0321,99025.0,99023.0,0.11492]
[1732310184572,0.0321,99025.0,99020.0,0.02658942]
[1732310184774,0.0321,99025.0,99010.0,0.09792227]
[1732310184971,0.0321,99025.0,99014.0,0.11488]
[1732310185273,0.3608,99023.0,99014.0,0.11488]
[1732310185472,0.3608,99015.0,99014.0,0.165319]
[1732310185671,0.3608,99015.0,99000.0,0.0015147]
[1732310185869,0.3608,99015.0,99001.0,0.11488]
[1732310186070,0.411239,99015.0,99001.0,0.11488]
[1732310186275,0.3608,99015.0,99001.0,0.11488]
[1732310186580,0.3608,99002.0,99001.0,0.11488]
[1732310186770,0.3608,99002.0,99000.0,0.0015147]
[1732310186970,0.0334,99001.0,99000.0,0.0015147]
[1732310187277,0.0334,99001.0,99000.0,0.1163947]
[1732310188673,0.444646,99001.0,99000.0,0.0015147]
[1732310189385,0.99724,99001.0,98984.0,0.11492]
[1732310189575,0.3608,98985.0,98984.0,0.11492]
[1732310189775,0.7216,98985.0,98984.0,0.11492]
[1732310190282,0.7216,98985.0,98982.0,0.050455]
[1732310190577,0.7216,98985.0,98983.0,0.165375]
[1732310191282,0.0304,98990.0,98989.0,0.050452]
[1732310191582,0.3608,98995.0,98983.0,0.11492]
[1732310191785,0.3608,98986.0,98983.0,0.11492]
[1732310192482,0.30308,98985.0,98975.0,0.11472]
[1732310192678,0.411259,98976.0,98975.0,0.11472]
[1732310193075,1.05472,98976.0,98960.0,0.00151555]
[1732310193273,0.3608,98961.0,98960.0,0.05198255]
[1732310193577,0.3608,98961.0,98960.0,0.00151555]
[1732310193778,0.3608,98961.0,98960.0,0.11627555]
[1732310194179,0.3608,98961.0,98960.0,0.16674255]
[1732310195076,0.3608,98965.0,98960.0,0.11627555]
[1732310195283,0.3608,98965.0,98964.0,0.050465]
[1732310196589,0.3608,98965.0,98960.0,0.11627555]
[1732310196790,0.3608,98965.0,98962.0,0.050466]
[1732310197085,0.3608,98965.0,98964.0,0.050465]
[1732310198491,0.3608,98965.0,98964.0,0.165225]
[1732310200296,0.3608,98965.0,98964.0,0.050465]
[1732310200591,0.3608,98965.0,98964.0,0.165225]
[1732310201295,0.3608,98965.0,98960.0,0.00151555]
[1732310201590,0.3608,98965.0,98961.0,0.11476]
[1732310205094,0.3608,98965.0,98960.0,0.00151555]
[1732310205095,0.3608,98965.0,98962.0,0.11476]
[1732310208092,0.050465,98963.0,98962.0,0.11476]
[1732310208300,0.3608,98965.0,98962.0,0.11476]
[1732310209497,0.411265,98965.0,98962.0,0.11476]
[1732310209799,0.3608,98965.0,98962.0,0.11476]
[1732310210092,0.050466,98961.0,98960.0,0.00151555]
[1732310210289,0.411266,98961.0,98960.0,0.00151555]
[1732310211794,1.105226,98961.0,98960.0,0.00151555]
[1732310212397,1.05476,98961.0,98960.0,0.05198255]
[1732310212592,1.105226,98961.0,98960.0,0.05198255]
[1732310212792,0.7516,98961.0,98960.0,0.05198255]
[1732310212993,0.802066,98961.0,98960.0,0.05198255]
[1732310214002,0.7516,98961.0,98960.0,0.05198255]
[1732310214386,0.802066,98961.0,98960.0,0.05198255]
[1732310215107,0.82897821,98961.0,98960.0,0.00151555]
[1732310215396,0.82897821,98961.0,98960.0,0.05198255]
[1732310216001,0.82897821,98961.0,98960.0,0.00151555]
[1732310217095,1.13213821,98961.0,98960.0,0.00151555]
[1732310217290,1.08167221,98961.0,98946.0,0.1148]
[1732310217601,0.3608,98947.0,98946.0,0.165274]
[1732310217801,0.411273,98947.0,98946.0,0.165274]
[1732310218691,0.3608,98947.0,98943.0,0.050475]
[1732310218892,0.050475,98944.0,98943.0,0.050475]
[1732310219498,0.3608,98945.0,98939.0,0.1148]
[1732310219793,0.411275,98945.0,98944.0,0.050475]
[1732310221291,0.3608,98945.0,98939.0,0.1148]
[1732310221692,0.7516,98945.0,98935.0,0.1146]
[1732310221899,0.411279,98936.0,98935.0,0.1146]
[1732310222098,0.411279,98936.0,98935.0,0.16508]
[1732310222295,0.3608,98936.0,98935.0,0.16508]
[1732310224002,0.3608,98936.0,98935.0,0.1146]
[1732310224209,0.411279,98936.0,98935.0,0.1146]
[1732310224506,0.411279,98936.0,98935.0,0.16508]
[1732310224806,0.411279,98936.0,98935.0,0.1146]
[1732310227112,0.3608,98936.0,98926.0,0.00151603]
[1732310227308,0.3608,98928.0,98927.0,0.165124]
[1732310229909,0.3608,98928.0,98927.0,0.11464]
[1732310230809,0.3608,98928.0,98927.0,0.050484]
[1732310231001,0.3608,98928.0,98927.0,0.11464]
[1732310232106,0.3608,98928.0,98927.0,0.165124]
[1732310233217,0.3608,98928.0,98927.0,0.11464]
[1732310233909,0.3608,98928.0,98927.0,0.165124]
[1732310236712,0.3608,98928.0,98927.0,0.11464]
[1732310238413,0.3608,98928.0,98927.0,0.165124]
[1732310239319,0.3608,98928.0,98927.0,0.11464]
[1732310239506,0.3608,98928.0,98927.0,0.165124]
[1732310239711,0.3608,98928.0,98927.0,0.11464]
[1732310239909,0.3608,98928.0,98927.0,0.165124]
[1732310245518,0.3608,98928.0,98927.0,0.18527823]
[1732310246516,0.7216,98928.0,98927.0,0.18527823]
[1732310247019,0.7216,98928.0,98927.0,0.13479423]
[1732310248025,0.7216,98928.0,98927.0,0.18527823]
[1732310249517,0.7216,98928.0,98926.0,0.00151603]
[1732310249820,0.36664,98927.0,98914.0,0.11464]
[1732310250017,0.05049,98914.0,98913.0,0.11464]
[1732310250224,0.3608,98915.0,98913.0,0.11464]
[1732310250413,0.0333,98914.0,98898.0,0.33908]
[1732310250613,0.411298,98899.0,98898.0,0.33908]
[1732310250810,0.411298,98899.0,98897.0,0.11444]
[1732310251020,0.080798,98898.0,98897.0,0.11444]
[1732310251213,0.3608,98899.0,98897.0,0.11444]
[1732310251418,0.3608,98899.0,98898.0,0.050498]
[1732310251921,0.3608,98899.0,98898.0,0.164938]
[1732310253924,0.3608,98915.0,98914.0,0.05049]
[1732310254119,0.3608,98915.0,98914.0,0.16493]
[1732310254319,0.3608,98923.0,98922.0,0.050486]
[1732310254527,0.3608,98923.0,98914.0,0.11444]
[1732310254820,0.050489,98916.0,98915.0,0.11444]
[1732310256322,0.714569,98916.0,98915.0,0.11444]
[1732310256521,0.69068484,98916.0,98905.0,0.11448]
[1732310256717,0.69068484,98916.0,98893.0,0.05201727]
[1732310256718,0.050496,98903.0,98902.0,0.11448]
[1732310257519,0.411296,98903.0,98902.0,0.11448]
[1732310258023,0.66412,98903.0,98893.0,0.00151627]
[1732310258329,0.3608,98894.0,98891.0,0.11448]
[1732310258527,0.050502,98892.0,98891.0,0.11448]
[1732310258826,0.353862,98892.0,98891.0,0.11448]
[1732310260126,0.30336,98892.0,98885.0,0.050505]
[1732310260427,0.411305,98886.0,98885.0,0.050505]
[1732310261220,0.3608,98886.0,98885.0,0.050505]
[1732310262222,0.3608,98886.0,98885.0,0.164985]
[1732310263817,0.3608,98886.0,98885.0,0.19183689]
[1732310264323,0.3608,98886.0,98885.0,0.07735689]
[1732310264523,0.3608,98886.0,98885.0,0.19183689]
[1732310265326,0.3608,98886.0,98870.0,0.36132]
[1732310265525,0.3608,98886.0,98871.0,0.11448]
[1732310266619,0.3608,98886.0,98879.0,0.050508]
[1732310267033,0.3608,98886.0,98873.0,0.050511]
[1732310267034,0.411305,98886.0,98873.0,0.050511]
[1732310267228,0.3608,98886.0,98876.0,0.05051]
[1732310267429,0.3608,98877.0,98871.0,0.11448]
[1732310267729,0.050512,98873.0,98871.0,0.11448]
[1732310267932,0.0324,98876.0,98871.0,0.11448]
[1732310268125,0.05051,98875.0,98871.0,0.11448]
[1732310268321,0.0324,98876.0,98871.0,0.11448]
[1732310268529,0.3608,98877.0,98870.0,0.02691194]
[1732310268737,0.0656,98891.0,98871.0,0.11452]
[1732310269028,0.0656,98891.0,98885.0,0.050505]
[1732310269425,0.0324,98891.0,98885.0,0.050505]
[1732310269623,0.0324,98891.0,98875.0,0.3608]
[1732310269821,0.0324,98891.0,98889.0,0.050503]
[1732310270020,0.02720767,98893.0,98892.0,0.050502]
[1732310270222,0.3608,98902.0,98892.0,0.11452]
[1732310270623,0.3608,98902.0,98895.0,0.0505]
[1732310270828,0.3608,98902.0,98892.0,0.11452]
[1732310270829,0.050498,98900.0,98892.0,0.11452]
[1732310271024,0.3608,98902.0,98892.0,0.11452]
[1732310271231,0.3608,98902.0,98896.0,0.050499]
[1732310272032,0.3882817,98902.0,98892.0,0.11452]
[1732310272337,0.050498,98900.0,98893.0,0.050501]
[1732310272539,0.3882817,98902.0,98892.0,0.11452]
[1732310272836,0.3882817,98902.0,98892.0,0.165021]
[1732310273237,0.050498,98900.0,98892.0,0.165021]
[1732310273731,0.0274817,98902.0,98892.0,0.11452]
[1732310273932,0.0505,98896.0,98892.0,0.11452]
[1732310274435,0.411301,98893.0,98892.0,0.11452]
[1732310274625,0.3608,98893.0,98892.0,0.11452]
[1732310275026,0.411301,98893.0,98892.0,0.11452]
[1732310275936,0.050501,98893.0,98892.0,0.11452]
[1732310276134,0.411301,98893.0,98892.0,0.11452]
[1732310276331,0.3608,98893.0,98892.0,0.11452]
[1732310276633,0.3608,98893.0,98892.0,0.165022]
[1732310276833,0.050499,98897.0,98892.0,0.165022]
[1732310277838,0.3608,98894.0,98893.0,0.050501]
[1732310278040,0.050499,98897.0,98894.0,0.0505]
[1732310278437,0.09304667,98904.0,98897.0,0.050499]
[1732310278638,0.09304667,98904.0,98892.0,0.11452]
[1732310278639,0.05912666,98904.0,98893.0,0.050501]
[1732310278934,0.3608,98894.0,98893.0,0.050501]
[1732310279833,0.3608,98894.0,98892.0,0.11452]
[1732310280232,0.050499,98898.0,98892.0,0.165021]
[1732310280435,0.3608,98894.0,98893.0,0.050501]
[1732310280639,0.3608,98894.0,98892.0,0.11452]
[1732310283636,0.3608,98894.0,98893.0,0.050501]
[1732310283838,0.3608,98895.0,98893.0,0.050501]
[1732310284033,0.411296,98903.0,98892.0,0.11452]
[1732310284034,0.36192001,98903.0,98892.0,0.11452]
[1732310284232,0.3608,98903.0,98897.0,0.050499]
[1732310284442,0.3608,98903.0,98892.0,0.11452]
[1732310284641,0.3608,98903.0,98901.0,0.050497]
[1732310286147,0.3608,98903.0,98902.0,0.050496]
[1732310288344,0.3608,98903.0,98896.0,0.050499]
[1732310288549,0.00151719,98906.0,98894.0,0.3608]
[1732310288752,0.00151719,98906.0,98897.0,0.050499]
[1732310289148,0.050496,98904.0,98892.0,0.11452]
[1732310289446,0.050499,98897.0,98893.0,0.11432]
[1732310289637,0.0505,98896.0,98893.0,0.11432]
[1732310289838,0.050501,98894.0,98893.0,0.11432]
[1732310290250,0.3608,98896.0,98893.0,0.11432]
[1732310290546,0.411297,98900.0,98893.0,0.11432]
[1732310290747,0.3608,98900.0,98899.0,0.050498]
[1732310291051,0.3608,98900.0,98893.0,0.11432]
[1732310291252,0.3608,98900.0,98894.0,0.050501]
[1732310291444,0.3608,98900.0,98899.0,0.050498]
[1732310291941,0.3608,98900.0,98893.0,0.11432]
[1732310292145,0.3608,98900.0,98887.0,0.02734789]
[1732310292446,0.050501,98893.0,98885.0,0.050505]
[1732310292750,0.050501,98895.0,98886.0,0.11432]
[1732310293155,0.050501,98895.0,98887.0,0.050504]
[1732310293854,0.3608,98893.0,98887.0,0.050504]
[1732310294256,0.3608,98893.0,98888.0,0.050503]
[1732310295948,0.3608,98893.0,98889.0,0.11432]
[1732310296154,0.3608,98893.0,98889.0,0.164823]
[1732310297453,0.0305,98898.0,98889.0,0.11432]
[1732310297648,0.3608,98894.0,98891.0,0.050502]
[1732310297858,0.3608,98894.0,98889.0,0.11432]
[1732310298148,0.3608,98894.0,98891.0,0.050502]
[1732310298352,0.3608,98894.0,98893.0,0.050501]
[1732310298951,0.02745219,98907.0,98889.0,0.11432]
[1732310299146,0.02745219,98907.0,98891.0,0.050502]
[1732310299352,0.3608,98914.0,98895.0,0.3608]
[1732310299551,0.02702898,98910.0,98896.0,0.0617]
[1732310299750,0.3608,98914.0,98901.0,0.050497]
[1732310299948,0.411291,98914.0,98903.0,0.050496]
[1732310300154,0.412451,98914.0,98904.0,0.11432]
[1732310300451,0.36196,98914.0,98905.0,0.050495]
[1732310300652,0.050491,98912.0,98904.0,0.11432]
[1732310300951,0.050493,98909.0,98904.0,0.11432]
[1732310301155,0.050493,98909.0,98905.0,0.11432]
[1732310301756,0.050491,98913.0,98905.0,0.11432]
[1732310301956,0.050492,98911.0,98905.0,0.11432]
[1732310303062,0.3608,98914.0,98905.0,0.11432]
[1732310303248,0.05201119,98906.0,98905.0,0.11432]
[1732310305365,0.050497,98902.0,98900.0,0.02674297]
[1732310305554,0.0312,98913.0,98870.0,0.09792227]
[1732310305555,0.3608,98901.0,98883.0,0.0328]
[1732310305856,0.0505,98895.0,98894.0,0.11432]
[1732310311353,0.0319,98900.0,98895.0,0.0505]
[1732310311562,0.02763043,98901.0,98900.0,0.050497]
[1732310311764,0.050495,98905.0,98900.0,0.050497]
[1732310312063,0.3608,98906.0,98894.0,0.11432]
[1732310312266,0.050496,98904.0,98895.0,0.0505]
[1732310312457,0.38798819,98906.0,98894.0,0.11432]
[1732310312657,0.38798819,98906.0,98894.0,0.1418609]
[1732310312869,0.38798819,98906.0,98900.0,0.050497]
[1732310313265,0.050496,98903.0,98896.0,0.050499]
[1732310313462,0.38798819,98906.0,98896.0,0.050499]
[1732310313657,0.38798819,98906.0,98894.0,0.1418609]
[1732310313856,0.050498,98899.0,98894.0,0.11432]
[1732310314065,0.38798819,98906.0,98894.0,0.11432]
[1732310314364,0.050498,98900.0,98894.0,0.11432]
[1732310314559,0.050499,98897.0,98894.0,0.11432]
[1732310314754,0.0505,98895.0,98894.0,0.11432]
[1732310315161,0.050498,98900.0,98894.0,0.11432]
[1732310315760,0.050498,98899.0,98894.0,0.11432]
[1732310316161,0.38798819,98906.0,98894.0,0.11432]
[1732310316769,0.050495,98905.0,98894.0,0.11432]
[1732310317272,0.050497,98901.0,98894.0,0.164821]
[1732310318571,0.38798819,98906.0,98894.0,0.11432]
[1732310318867,0.050501,98894.0,98893.0,0.3392]
[1732310319066,0.050501,98894.0,98893.0,0.45336]
[1732310319067,0.411301,98894.0,98893.0,0.45336]
[1732310319363,0.411301,98894.0,98893.0,0.3392]
[1732310319565,0.411301,98894.0,98879.0,0.36132]
[1732310319566,0.050508,98880.0,98879.0,0.36132]
[1732310319757,0.050508,98880.0,98879.0,0.47496]
[1732310320062,0.050508,98880.0,98879.0,0.11416]
[1732310323769,0.38733122,98883.0,98879.0,0.11416]
[1732310323770,0.38733122,98883.0,98882.0,0.050507]
[1732310323957,0.38733122,98883.0,98882.0,0.164667]
[1732310324264,0.39192001,98900.0,98893.0,0.050501]
[1732310324565,0.00112001,98900.0,98899.0,0.050498]
[1732310324760,0.094,98920.0,98905.0,0.050495]
[1732310325066,0.094,98920.0,98894.0,0.0505]
[1732310325067,0.12163556,98920.0,98900.0,0.09792227]
[1732310325260,0.050488,98919.0,98912.0,0.050491]
[1732310325462,0.05049,98914.0,98913.0,0.11416]
[1732310325768,0.05049,98914.0,98906.0,0.050494]
[1732310325769,0.08993556,98920.0,98893.0,0.3608]
[1732310325959,0.050494,98907.0,98895.0,0.0505]
[1732310326166,0.050494,98907.0,98899.0,0.050498]
[1732310326470,0.050494,98907.0,98894.0,0.11416]
[1732310326660,0.050494,98907.0,98901.0,0.050497]
[1732310327062,0.050492,98911.0,98894.0,0.11416]
[1732310327266,0.3608,98912.0,98902.0,0.050496]
[1732310327468,0.050492,98910.0,98902.0,0.050496]
[1732310327855,0.3608,98912.0,98903.0,0.11416]
[1732310328070,0.050493,98909.0,98903.0,0.11416]
[1732310329270,0.18785783,98920.0,98903.0,0.11416]
[1732310329271,0.050494,98906.0,98903.0,0.11416]
[1732310329870,0.050495,98904.0,98903.0,0.11416]
[1732310330268,0.050494,98907.0,98903.0,0.11416]
[1732310332069,0.411294,98907.0,98903.0,0.11416]
[1732310332463,0.050495,98904.0,98903.0,0.11416]
[1732310333757,0.411295,98904.0,98903.0,0.11416]
[1732310335379,0.050495,98904.0,98903.0,0.11416]
[1732310335573,0.050495,98904.0,98903.0,0.11412]
[1732310335870,0.411295,98904.0,98903.0,0.11412]
[1732310337073,0.3608,98904.0,98903.0,0.11412]
[1732310338470,0.02761445,98907.0,98903.0,0.11412]
[1732310338769,0.050493,98908.0,98903.0,0.11412]
[1732310339167,0.050494,98906.0,98903.0,0.11412]
[1732310339773,0.3608,98912.0,98903.0,0.11412]
[1732310339974,0.050495,98906.0,98903.0,0.11412]
[1732310340168,0.38762759,98912.0,98903.0,0.11412]
[1732310340363,0.050495,98904.0,98903.0,0.11412]
[1732310340574,0.411295,98904.0,98903.0,0.11412]
[1732310341466,0.050495,98904.0,98903.0,0.11412]
[1732310342479,0.411295,98904.0,98903.0,0.11412]
[1732310342682,0.3608,98904.0,98903.0,0.11412]
[1732310342890,0.411295,98904.0,98903.0,0.11412]
[1732310344480,0.050498,98899.0,98897.0,0.050499]
[1732310344781,0.050498,98899.0,98898.0,0.164418]
[1732310345167,0.050498,98899.0,98898.0,0.11392]
[1732310346076,0.3608,98904.0,98888.0,0.02729765]
[1732310346281,0.3608,98904.0,98887.0,0.0306]
[1732310346282,0.050504,98888.0,98887.0,0.0306]
[1732310346482,0.050504,98888.0,98887.0,0.14452]
[1732310347276,0.411304,98888.0,98887.0,0.11392]
[1732310347478,0.3608,98888.0,98887.0,0.11392]
[1732310347684,0.3608,98888.0,98887.0,0.164424]
[1732310348380,0.3608,98888.0,98887.0,0.11392]
[1732310348882,0.411304,98888.0,98887.0,0.11392]
[1732310349888,0.3608,98888.0,98887.0,0.11392]
[1732310350485,0.411304,98888.0,98887.0,0.11392]
[1732310351781,0.411304,98888.0,98885.0,0.3392]
[1732310351980,0.411304,98888.0,98886.0,0.11396]
[1732310352183,0.050504,98887.0,98885.0,0.3392]
[1732310352375,0.050504,98887.0,98886.0,0.11396]
[1732310355382,0.3608,98888.0,98886.0,0.11396]
[1732310355587,0.441296,98903.0,98886.0,0.11396]
[1732310355588,0.39160001,98903.0,98886.0,0.11396]
[1732310355789,0.050501,98894.0,98888.0,0.050504]
[1732310355974,0.050501,98894.0,98886.0,0.11396]
[1732310356175,0.3908,98903.0,98886.0,0.11396]
[1732310356579,0.050502,98892.0,98887.0,0.050504]
[1732310356983,0.09792227,98900.0,98887.0,0.050504]
[1732310357178,0.09792227,98900.0,98886.0,0.11396]
[1732310357483,0.050498,98899.0,98889.0,0.050503]
[1732310357691,0.09792227,98900.0,98886.0,0.11396]
[1732310357898,0.3608,98893.0,98889.0,0.050503]
[1732310358088,0.3608,98893.0,98886.0,0.14666]
[1732310358390,0.050504,98887.0,98886.0,0.14666]
[1732310359388,0.3608,98893.0,98874.0,0.36132]
[1732310359389,0.050507,98882.0,98874.0,0.00052]
[1732310359587,0.050514,98868.0,98867.0,0.00151651]
[1732310359792,0.050514,98868.0,98867.0,0.11547651]
[1732310359991,0.00139129,98868.0,98867.0,0.11547651]
[1732310360188,0.05190529,98868.0,98867.0,0.11547651]
[1732310360487,0.00139129,98868.0,98867.0,0.14275455]
[1732310363290,0.00139129,98868.0,98867.0,0.19326855]
[1732310364185,0.00139129,98868.0,98867.0,0.11547651]
[1732310368891,0.00139129,98868.0,98867.0,0.16599051]
[1732310369107,0.3608,98881.0,98876.0,0.05051]
[1732310369596,0.3608,98881.0,98877.0,0.11396]
[1732310370704,0.3608,98881.0,98877.0,0.164469]
[1732310371485,0.3608,98881.0,98877.0,0.11396]
[1732310375401,0.411307,98881.0,98877.0,0.11396]
[1732310377596,0.3608,98881.0,98877.0,0.11396]
[1732310378808,0.3608,98881.0,98878.0,0.11368]
[1732310379003,0.050508,98880.0,98878.0,0.11368]
[1732310379402,0.050508,98879.0,98878.0,0.11368]
[1732310381505,0.34197771,98881.0,98878.0,0.11368]
[1732310381800,0.050508,98879.0,98878.0,0.11368]
[1732310382006,0.34197771,98881.0,98864.0,0.0270833]
[1732310382211,0.050515,98865.0,98863.0,0.11368]
[1732310382407,0.4539,98864.0,98863.0,0.11368]
[1732310386010,0.48092088,98864.0,98863.0,0.11368]
[1732310387717,0.4539,98864.0,98863.0,0.11368]
[1732310388108,0.4539,98864.0,98862.0,0.11372]
[1732310388304,0.4539,98864.0,98862.0,0.164237]
[1732310388609,0.4237,98864.0,98862.0,0.164237]
[1732310389415,0.3932,98864.0,98862.0,0.11372]
[1732310390412,0.3608,98864.0,98862.0,0.11372]
[1732310390727,0.050512,98873.0,98864.0,0.050515]
[1732310390906,0.050513,98870.0,98864.0,0.050515]
[1732310391114,0.050513,98870.0,98864.0,0.080715]
[1732310391416,0.050513,98870.0,98864.0,0.0302]
[1732310392212,0.050513,98869.0,98864.0,0.0302]
[1732310392611,0.050515,98866.0,98864.0,0.0302]
[1732310393219,0.38805028,98875.0,98863.0,0.11372]
[1732310393415,0.050516,98864.0,98863.0,0.11372]
[1732310394615,0.09792227,98873.0,98863.0,0.11372]
[1732310395216,0.050514,98868.0,98863.0,0.11372]
[1732310396021,0.02725028,98875.0,98863.0,0.11372]
[1732310396222,0.050511,98874.0,98863.0,0.11372]
[1732310396417,0.050511,98874.0,98864.0,0.0306]
[1732310396614,0.09792227,98880.0,98864.0,0.0306]
[1732310396915,0.050512,98871.0,98864.0,0.0306]
[1732310398123,0.050513,98870.0,98864.0,0.0306]
[1732310398326,0.411311,98873.0,98864.0,0.0306]
[1732310398826,0.050512,98871.0,98864.0,0.0306]
[1732310399017,0.050514,98869.0,98864.0,0.0306]
[1732310399217,0.3608,98873.0,98864.0,0.0306]
[1732310399824,0.050514,98869.0,98864.0,0.0306]
[1732310400123,0.050514,98868.0,98864.0,0.0306]
[1732310400525,0.3608,98873.0,98864.0,0.0306]
[1732310400715,0.411311,98873.0,98864.0,0.0306]
[1732310400915,0.3608,98873.0,98864.0,0.0306]
[1732310401125,0.3608,98873.0,98867.0,0.050514]
[1732310401328,0.3608,98873.0,98864.0,0.0306]
[1732310401523,0.3608,98873.0,98868.0,0.050514]
[1732310401923,0.3608,98873.0,98864.0,0.0306]
[1732310402222,0.02729746,98880.0,98866.0,0.3608]
[1732310402427,0.3608,98883.0,98866.0,0.3608]
[1732310402620,0.3608,98883.0,98881.0,0.050507]
[1732310402948,0.3608,98883.0,98882.0,0.0312]
[1732310403139,0.3608,98883.0,98882.0,0.1446]
[1732310403742,0.050503,98889.0,98883.0,0.050506]
[1732310404049,0.00151726,98892.0,98886.0,0.050504]
[1732310404346,0.00151726,98892.0,98882.0,0.1446]
[1732310404549,0.00151726,98892.0,98883.0,0.0309]
[1732310404742,0.00151726,98892.0,98888.0,0.050504]
[1732310404942,0.050503,98889.0,98883.0,0.0309]
[1732310405743,0.050503,98890.0,98883.0,0.081406]
[1732310405943,0.00151726,98892.0,98891.0,0.050502]
[1732310408252,0.09792227,98901.0,98891.0,0.050502]
[1732310408444,0.050498,98899.0,98891.0,0.050502]
[1732310408645,0.09792227,98901.0,98883.0,0.05842653]
[1732310408845,0.050498,98900.0,98883.0,0.05842653]
[1732310409445,0.050499,98897.0,98889.0,0.050503]
[1732310409642,0.3608,98897.0,98883.0,0.05842653]
[1732310409958,0.050505,98886.0,98884.0,0.1134]
[1732310410253,0.050514,98868.0,98855.0,0.36283704]
[1732310410556,0.050517,98861.0,98856.0,0.1134]
[1732310410755,0.3608,98862.0,98856.0,0.1134]
[1732310411057,0.050519,98857.0,98856.0,0.1134]
[1732310411247,0.050519,98857.0,98855.0,0.00151704]
[1732310411448,0.050519,98857.0,98856.0,0.1134]
[1732310411651,0.05052,98856.0,98855.0,0.00151704]
[1732310411854,0.05052,98856.0,98855.0,0.11491704]
[1732310414655,0.05052,98856.0,98855.0,0.00151704]
[1732310416353,0.050524,98849.0,98848.0,0.1134]
[1732310416562,0.411324,98849.0,98848.0,0.1134]
[1732310417461,0.050527,98843.0,98842.0,0.050527]
[1732310417646,0.050527,98843.0,98822.0,0.36287796]
[1732310417647,0.3608,98847.0,98822.0,0.00151796]
[1732310417848,0.050537,98824.0,98823.0,0.050537]
[1732310418159,0.3608,98829.0,98823.0,0.050537]
[1732310418353,0.050537,98824.0,98823.0,0.050537]
[1732310418758,0.3608,98829.0,98822.0,0.00151796]
[1732310418954,0.050536,98824.0,98823.0,0.11344]
[1732310419356,0.050536,98824.0,98823.0,0.163977]
[1732310419555,0.050536,98824.0,98823.0,0.11344]
[1732310423554,0.050536,98824.0,98823.0,0.11475155]
[1732310423762,0.3608,98829.0,98826.0,0.050535]
[1732310423960,0.3608,98829.0,98828.0,0.050534]
[1732310424558,0.3608,98829.0,98828.0,0.00131155]
[1732310424958,0.411334,98829.0,98828.0,0.00131155]
[1732310426967,0.411334,98829.0,98828.0,0.11475155]
[1732310427359,0.411334,98829.0,98828.0,0.00131155]
[1732310431162,0.411334,98829.0,98828.0,0.05184555]
[1732310431867,0.411334,98829.0,98828.0,0.00131155]
[1732310432266,0.3608,98829.0,98828.0,0.05184555]
[1732310432471,0.3608,98829.0,98828.0,0.16504555]
[1732310433063,0.050531,98835.0,98828.0,0.11451155]
[1732310433374,0.050531,98835.0,98833.0,0.050531]
[1732310433667,0.050531,98835.0,98834.0,0.00131155]
[1732310434172,0.411331,98835.0,98834.0,0.00131155]
[1732310434358,0.411331,98835.0,98834.0,0.11451155]
[1732310436072,0.411331,98835.0,98834.0,0.00131155]
[1732310439773,0.050531,98835.0,98834.0,0.05184255]
[1732310440573,0.050531,98835.0,98834.0,0.00131155]
[1732310440769,0.050529,98840.0,98834.0,0.00131155]
[1732310441076,0.050529,98839.0,98836.0,0.05053]
[1732310441266,0.050528,98840.0,98835.0,0.050531]
[1732310441462,0.05053,98838.0,98834.0,0.00131155]
[1732310441667,0.05053,98838.0,98836.0,0.00131155]
[1732310442071,0.05053,98837.0,98836.0,0.00131155]
[1732310443368,0.05053,98837.0,98836.0,0.11451155]
[1732310444575,0.05053,98837.0,98836.0,0.00131155]
[1732310444765,0.44133,98837.0,98836.0,0.00131155]
[1732310447479,0.050533,98831.0,98830.0,0.1132]
[1732310447673,0.411333,98831.0,98830.0,0.1132]
[1732310449172,0.411333,98831.0,98822.0,0.00151796]
[1732310449173,0.050537,98823.0,98822.0,0.00151796]
[1732310449482,0.411337,98823.0,98822.0,0.00151796]
[1732310449983,0.411337,98823.0,98822.0,0.11471796]